bitfinex-derivatives/quotes_ETHF0:USTF0_20250105
["timestamp","ask_amount","ask_price","bid_price","bid_amount"]
[1736098741960,3.2078,3638.1,3637.4,2.3882]
[1736098742161,3.2078,3638.1,3638.0,0.24745]
[1736098742958,2.19809395,3638.5,3638.0,0.24745]
[1736098742959,2.19809395,3638.5,3638.3,0.24742]
[1736098743163,2.19809395,3638.5,3638.4,0.8426]
[1736098743964,2.19809395,3638.8,3638.4,4.0504]
[1736098744162,2.19809395,3638.8,3638.6,0.2474]
[1736098744657,2.19809395,3638.8,3638.4,4.0504]
[1736098744858,2.19809395,3638.5,3638.4,4.0504]
[1736098745373,2.19809395,3638.5,3638.4,4.29782]
[1736098745565,2.44548395,3638.8,3638.5,0.24741]
[1736098745872,2.19809395,3639.1,3638.4,4.0504]
[1736098746056,2.19809395,3639.1,3638.9,3.2078]
[1736098746258,2.44546395,3639.1,3638.9,3.2078]
[1736098746459,2.19809395,3639.1,3638.9,3.2078]
[1736098746757,2.44547395,3639.1,3638.8,0.24739]
[1736098747060,2.44547395,3639.1,3638.9,0.4092]
[1736098747061,0.24738,3639.0,3638.9,0.4092]
[1736098747468,2.44546395,3639.1,3638.9,0.4092]
[1736098747768,2.19809395,3639.1,3638.9,0.4092]
[1736098747968,2.19809395,3639.1,3638.9,0.65658]
[1736098748776,2.19809395,3639.1,3638.9,0.4092]
[1736098749065,0.24738,3639.0,3638.9,0.4092]
[1736098749465,2.19809395,3639.1,3638.4,4.0504]
[1736098749667,0.24741,3638.5,3638.4,4.0504]
[1736098749868,0.24741,3638.5,3638.4,0.8426]
[1736098750762,2.19809395,3638.7,3638.4,0.8426]
[1736098750971,2.19809395,3638.7,3638.4,1.09002]
[1736098751358,3.2078,3639.2,3638.5,0.24741]
[1736098751359,2.19809395,3639.0,3638.5,0.24741]
[1736098751571,0.24739,3638.8,3638.5,0.24741]
[1736098752266,0.24739,3638.9,3638.5,0.24741]
[1736098752970,2.44547395,3639.0,3638.4,4.0504]
[1736098753166,2.44547395,3639.0,3638.6,0.2474]
[1736098753569,2.19809395,3639.0,3638.4,4.0504]
[1736098753771,0.24739,3638.9,3638.4,4.0504]
[1736098753969,0.24739,3638.9,3638.5,0.24741]
[1736098754965,0.24738,3638.9,3638.5,0.24741]
[1736098755171,2.19809395,3638.7,3638.4,4.0504]
[1736098755373,0.24741,3638.6,3638.4,4.0504]
[1736098755873,2.44549395,3638.7,3638.4,4.0504]
[1736098756073,0.24741,3638.6,3638.4,4.0504]
[1736098756270,2.44549395,3638.7,3638.4,4.0504]
[1736098756567,2.44549395,3638.7,3638.4,4.29782]
[1736098756765,2.44547395,3639.0,3638.6,0.2474]
[1736098756970,2.44547395,3639.0,3638.4,4.0504]
[1736098757365,2.19809395,3639.0,3638.5,0.24741]
[1736098757673,0.24739,3638.9,3638.5,0.24741]
[1736098758068,0.24739,3638.9,3638.4,4.0504]
[1736098758069,2.19809395,3638.7,3638.4,4.0504]
[1736098758374,0.24741,3638.5,3638.4,4.0504]
[1736098759274,0.24741,3638.5,3638.4,0.8426]
[1736098759672,0.24743,3638.3,3638.2,0.4092]
[1736098759972,2.44552395,3638.3,3638.2,0.4092]
[1736098760772,0.24744,3638.1,3637.9,0.4367]
[1736098760968,2.19809395,3638.0,3637.5,4.28053921]
[1736098761171,0.24747,3637.6,3637.5,4.68633921]
[1736098762273,0.24747,3637.6,3637.5,0.4058]
[1736098763975,2.19809395,3637.7,3637.6,0.24747]
[1736098764172,2.19809395,3638.0,3637.5,0.4058]
[1736098764373,4.34722165,3638.3,3637.6,3.2078]
[1736098764682,0.24746,3637.9,3637.6,3.45527]
[1736098764878,0.24745,3637.9,3637.6,3.45527]
[1736098765180,2.19809395,3638.0,3637.6,3.2078]
[1736098765371,0.24746,3637.9,3637.6,3.45527]
[1736098765670,0.24746,3637.8,3637.6,3.2078]
[1736098766178,2.19809395,3638.0,3637.6,3.2078]
[1736098766474,0.24745,3637.9,3637.6,3.45527]
[1736098766874,0.24746,3637.8,3637.6,3.2078]
[1736098767576,0.24747,3637.7,3637.6,3.2078]
[1736098767776,0.24747,3637.6,3637.5,0.4058]
[1736098768270,2.19809395,3637.7,3637.3,0.4267]
[1736098768271,0.24748,3637.5,3637.3,0.4267]
[1736098768476,2.19809395,3637.7,3637.3,0.4267]
[1736098768664,0.24748,3637.6,3637.3,0.67419]
[1736098769279,2.19809395,3637.7,3637.3,0.4267]
[1736098769480,0.24748,3637.5,3637.3,0.4267]
[1736098770079,2.19809395,3637.7,3637.3,0.4267]
[1736098770379,0.24749,3637.4,3637.3,0.4267]
[1736098770775,2.44558395,3637.4,3637.3,0.4267]
[1736098771179,0.24749,3637.3,3637.2,4.0685]
[1736098771776,0.24749,3637.3,3637.2,3.2078]
[1736098771973,0.24751,3637.0,3636.9,0.4149]
[1736098772179,0.24752,3636.9,3636.8,4.0926]
[1736098773182,2.19809395,3637.0,3636.5,4.52808921]
[1736098773183,2.19809395,3637.0,3636.5,4.28053921]
[1736098773484,2.44563395,3636.6,3636.5,4.28053921]
[1736098773882,2.19809395,3636.6,3636.4,0.4149]
[1736098774273,2.19809395,3636.6,3636.4,0.66245]
[1736098775080,2.19809395,3636.6,3636.4,0.4149]
[1736098775878,2.19809395,3636.6,3636.5,0.24755]
[1736098776084,0.24753,3636.8,3636.5,0.24755]
[1736098776588,2.19809395,3637.2,3636.4,0.4149]
[1736098776778,3.2078,3637.3,3637.1,0.24751]
[1736098776972,4.34722165,3637.5,3637.3,0.24749]
[1736098777283,2.19809395,3637.5,3637.4,0.874]
[1736098777482,2.44557395,3637.5,3637.4,0.874]
[1736098779181,0.24749,3637.3,3637.2,0.4309]
[1736098779686,0.24753,3636.9,3636.7,0.24753]
[1736098779881,2.19809395,3636.8,3636.7,1.51683]
[1736098780586,2.19809395,3637.5,3636.7,1.51683]
[1736098780587,2.19809395,3637.1,3637.0,0.24751]
[1736098782785,2.19809395,3637.4,3636.7,4.4771]
[1736098783087,2.19809395,3637.4,3637.3,0.24749]
[1736098783474,2.19809395,3637.4,3636.7,3.2078]
[1736098783689,3.2078,3637.8,3636.7,3.2078]
[1736098783690,2.19809395,3637.0,3636.9,0.24751]
[1736098784283,2.44558395,3637.3,3637.0,0.24751]
[1736098785087,0.24751,3637.1,3636.8,1.52452]
[1736098788286,0.24752,3636.9,3636.8,1.277]
[1736098788481,2.19809395,3637.0,3636.8,1.277]
[1736098788688,2.19809395,3637.0,3636.9,0.24752]
[1736098789596,0.2475,3637.2,3636.9,0.24752]
[1736098790382,2.19809395,3637.3,3637.1,0.2475]
[1736098790885,2.19809395,3637.3,3636.8,1.277]
[1736098791086,2.19809395,3637.3,3637.2,0.2475]
[1736098791493,2.19809395,3637.3,3637.1,0.2475]
[1736098792489,3.2078,3637.8,3637.1,3.2078]
[1736098792791,0.24747,3637.7,3637.5,0.24748]
[1736098792993,0.24747,3637.7,3637.6,1.248]
[1736098793890,2.19809395,3637.9,3637.6,1.248]
[1736098794089,0.24746,3637.8,3637.6,1.248]
[1736098794693,2.19809395,3637.9,3637.4,3.2078]
[1736098794896,0.24748,3637.5,3636.9,4.73472]
[1736098795190,2.44559395,3637.2,3637.0,0.24751]
[1736098796789,0.24751,3637.1,3636.9,9.01525921]
[1736098797183,0.24751,3637.1,3636.9,4.73472]
[1736098797389,2.44559395,3637.2,3636.9,4.73472]
[1736098797589,2.44559395,3637.2,3637.0,0.24751]
[1736098801395,2.19809395,3637.2,3637.0,0.24751]
[1736098801898,2.44559395,3637.2,3636.9,4.73472]
[1736098802891,0.24751,3637.0,3636.9,4.4872]
[1736098803097,0.24751,3637.0,3636.9,4.0577]
[1736098803298,0.24751,3637.0,3636.9,0.8499]
[1736098803700,0.24751,3637.0,3636.9,0.4442]
[1736098804000,0.8531,3637.1,3636.7,4.28053921]
[1736098804197,2.19809395,3636.8,3636.6,5.13733921]
[1736098804395,0.24753,3636.7,3636.6,5.13733921]
[1736098805799,0.24753,3636.7,3636.6,0.8568]
[1736098806504,0.24754,3636.6,3636.5,3.2078]
[1736098807401,0.24754,3636.6,3636.5,7.48833921]
[1736098807803,0.24754,3636.6,3636.5,4.28053921]
[1736098808395,0.24755,3636.5,3636.4,4.68713921]
[1736098808598,2.44564395,3636.5,3636.4,4.68713921]
[1736098808794,2.44564395,3636.5,3636.4,4.28053921]
[1736098809803,2.44564395,3636.5,3636.2,4.28053921]
[1736098809804,0.24756,3636.3,3636.2,4.28053921]
[1736098811509,0.24761,3635.6,3635.5,4.28053921]
[1736098811703,2.44570395,3635.6,3635.5,4.28053921]
[1736098813100,2.19809395,3635.6,3635.4,1.3153]
[1736098813408,0.24762,3635.5,3635.4,1.3153]
[1736098814810,2.44570395,3635.6,3635.4,1.56292]
[1736098815004,0.24762,3635.5,3635.4,1.3153]
[1736098815210,2.19809395,3635.6,3635.4,1.3153]
[1736098815211,2.44570395,3635.6,3635.4,1.56292]
[1736098815611,0.24762,3635.5,3635.4,1.3153]
[1736098818909,2.19809395,3635.6,3635.4,1.3153]
[1736098819109,2.44570395,3635.6,3635.4,1.56292]
[1736098819311,0.24762,3635.5,3635.4,1.3153]
[1736098821113,0.24762,3635.5,3635.4,1.56292]
[1736098821319,0.24762,3635.5,3635.4,1.3153]
[1736098822119,2.19809395,3635.9,3635.4,1.3153]
[1736098822420,2.44568395,3635.9,3635.4,1.3153]
[1736098822616,2.44568395,3635.9,3635.7,0.2476]
[1736098824319,0.2476,3635.8,3635.7,0.2476]
[1736098824712,2.19809395,3635.9,3635.4,1.3153]
[1736098824912,0.24761,3635.7,3635.5,0.24761]
[1736098825112,0.24761,3635.7,3635.4,1.3153]
[1736098825113,0.2476,3635.8,3635.6,0.24761]
[1736098825408,0.24762,3635.5,3635.4,1.3153]
[1736098825714,2.44571395,3635.5,3635.4,1.3153]
[1736098832724,3.2078,3635.7,3635.4,1.3153]
[1736098832927,2.19809395,3635.8,3635.4,1.3153]
[1736098833317,2.19809395,3635.8,3635.7,0.2476]
[1736098833519,0.24761,3635.7,3635.5,0.24761]
[1736098834023,2.19809395,3635.8,3635.4,1.3153]
[1736098834225,2.19809395,3635.8,3635.6,0.24761]
[1736098834426,2.19809395,3635.8,3635.4,1.3153]
[1736098834625,2.44569395,3635.8,3635.5,0.24761]
[1736098834826,2.19809395,3635.8,3635.4,1.3153]
[1736098835126,0.24762,3635.5,3635.4,1.3153]
[1736098835424,2.44571395,3635.5,3635.4,1.3153]
[1736098837524,2.44571395,3635.5,3635.4,0.8907]
[1736098838121,2.44571395,3635.5,3635.4,0.4432]
[1736098841825,2.19809395,3635.5,3635.4,0.4432]
[1736098842030,2.40713093,3636.2,3636.0,0.24758]
[1736098842230,2.15956093,3636.2,3636.1,0.4303]
[1736098842534,4.60522488,3636.2,3636.1,0.4303]
[1736098843533,2.44566395,3636.2,3636.1,0.4303]
[1736098843830,2.19809395,3636.2,3635.8,0.4315]
[1736098844030,2.19809395,3635.9,3635.6,0.4303]
[1736098844221,2.19809395,3635.7,3635.4,4.28053921]
[1736098844418,0.24762,3635.5,3635.4,4.28053921]
[1736098844822,0.24762,3635.4,3635.3,4.28053921]
[1736098845021,2.44571395,3635.4,3635.3,4.28053921]
[1736098846228,5.40589395,3635.4,3634.9,3.6381]
[1736098846532,2.44574395,3635.0,3634.9,3.6381]
[1736098849632,2.44574395,3635.0,3634.9,3.2078]
[1736098849833,0.24768,3634.6,3634.5,0.4059]
[1736098850127,2.44577395,3634.6,3634.5,0.4059]
[1736098852032,9.19221671,3634.6,3634.5,0.4059]
[1736098854131,8.94453671,3634.6,3634.5,0.4059]
[1736098854431,2.19809395,3634.6,3634.5,0.65358]
[1736098854630,2.15956093,3634.9,3634.5,0.4059]
[1736098854830,2.15956093,3634.9,3634.8,0.24766]
[1736098855632,4.35765488,3635.1,3634.9,0.24765]
[1736098855821,4.35765488,3635.1,3635.0,0.4267]
[1736098856731,4.60529488,3635.1,3635.0,0.4267]
[1736098856936,2.44573395,3635.1,3635.0,0.4267]
[1736098858836,2.19809395,3635.1,3635.0,0.4267]
[1736098859238,2.44573395,3635.1,3635.0,0.4267]
[1736098860337,2.19809395,3635.1,3635.0,0.4267]
[1736098860531,8.95730977,3635.1,3634.9,0.0027044]
[1736098860730,1.10975,3635.0,3634.9,0.0027044]
[1736098861126,8.15223919,3635.0,3634.9,0.0027044]
[1736098863039,7.70773919,3635.0,3634.9,0.0027044]
[1736098863934,7.29013919,3635.0,3634.9,0.0027044]
[1736098865036,7.04248919,3635.0,3634.9,0.2503644]
[1736098865431,7.29013919,3635.0,3634.9,0.2503644]
[1736098866036,7.29013919,3635.0,3634.9,0.0027044]
[1736098866834,0.24765,3635.0,3634.9,0.0027044]
[1736098868342,0.24765,3635.0,3634.9,0.2503644]
[1736098869238,0.24765,3635.0,3634.9,0.0027044]
[1736098869840,2.15959633,3635.2,3634.9,0.0027044]
[1736098869841,2.15959633,3635.2,3635.1,0.24764]
[1736098870437,3.21656405,3635.4,3635.3,0.24763]
[1736098870637,3.21656405,3635.4,3635.3,3.45543]
[1736098870836,0.12616038,3635.4,3635.3,8.45543]
[1736098871142,2.40251245,3635.6,3635.5,0.24762]
[1736098871444,2.40251245,3635.6,3635.5,5.24762]
[1736098871741,3.48601251,3636.3,3636.1,0.24757]
[1736098871939,3.23845251,3636.3,3636.0,3.2078]
[1736098872140,3.23845251,3636.3,3636.2,0.24757]
[1736098873044,0.24754,3636.7,3636.2,0.24757]
[1736098873244,2.60889395,3636.9,3636.4,3.2078]
[1736098873441,0.24754,3636.6,3636.4,3.2078]
[1736098874145,7.06797323,3636.8,3636.4,3.45535]
[1736098874347,0.24754,3636.7,3636.4,3.2078]
[1736098875042,7.06797323,3636.8,3636.4,3.2078]
[1736098875239,7.06797323,3636.8,3636.5,0.24755]
[1736098875438,6.82044323,3636.8,3636.5,0.24755]
[1736098875639,0.24754,3636.7,3636.5,0.24755]
[1736098876236,7.06797323,3636.8,3636.6,0.24754]
[1736098876444,0.24754,3636.7,3636.4,3.45535]
[1736098876640,6.82044323,3636.8,3636.4,3.45535]
[1736098876840,0.24754,3636.6,3636.4,3.2078]
[1736098877043,0.24754,3636.7,3636.4,3.2078]
[1736098877645,0.24754,3636.6,3636.4,3.45535]
[1736098878546,0.24754,3636.6,3636.4,3.2078]
[1736098879243,0.24754,3636.6,3636.4,3.45535]
[1736098880150,0.24754,3636.6,3636.4,3.2078]
[1736098880747,6.82044323,3636.8,3636.4,3.2078]
[1736098881049,0.24755,3636.6,3636.4,3.2078]
[1736098881247,0.24755,3636.5,3636.4,3.2078]
[1736098881560,0.24757,3636.1,3636.0,3.2078]
[1736098881849,0.24758,3636.0,3635.8,4.54334265]
[1736098882042,1.09898,3636.0,3635.8,4.54334265]
[1736098882437,0.8514,3636.0,3635.8,4.29575265]
[1736098882643,0.24759,3635.9,3635.8,4.29575265]
[1736098882846,0.24759,3635.9,3635.6,6.66215435]
[1736098883151,0.24759,3635.9,3635.6,0.24761]
[1736098885355,0.24759,3635.9,3635.4,4.2918]
[1736098885541,0.24759,3635.9,3635.6,0.2476]
[1736098886142,0.8514,3636.0,3635.6,0.2476]
[1736098886552,1.09898,3636.0,3635.4,4.2918]
[1736098886749,1.09898,3636.0,3635.7,0.2476]
[1736098886953,1.09898,3636.0,3635.8,0.24759]
[1736098887155,0.8514,3636.0,3635.8,3.2078]
[1736098887355,1.09898,3636.0,3635.8,3.45539]
[1736098888449,0.8514,3636.0,3635.8,3.45539]
[1736098888846,1.09898,3636.0,3635.8,3.45539]
[1736098889750,0.8514,3636.0,3635.8,3.2078]
[1736098889952,2.60419395,3636.4,3635.8,3.2078]
[1736098890250,2.85175395,3636.4,3636.2,0.24756]
[1736098890454,2.60419395,3636.4,3635.8,3.2078]
[1736098890751,2.60419395,3636.4,3635.5,0.61904]
[1736098890752,2.60419395,3636.4,3636.3,3.45536]
[1736098890947,0.4061,3636.4,3636.3,3.45536]
[1736098892149,2.19809395,3636.7,3636.6,0.24754]
[1736098892349,2.44562395,3636.7,3636.5,0.24754]
[1736098892953,2.19809395,3636.7,3636.5,0.24754]
[1736098893154,2.19809395,3636.7,3636.3,3.2078]
[1736098893350,2.19809395,3636.7,3636.6,0.24754]
[1736098894251,2.19809395,3636.7,3636.3,3.2078]
[1736098894750,0.24754,3636.6,3636.3,3.2078]
[1736098895052,2.19809395,3636.7,3636.3,3.2078]
[1736098895252,0.4129,3636.5,3636.4,0.24755]
[1736098898355,0.66045,3636.5,3636.3,3.45536]
[1736098898551,0.66045,3636.5,3636.3,3.2078]
[1736098899057,0.4129,3636.5,3636.4,0.24755]
[1736098901760,0.66045,3636.5,3636.3,3.45536]
[1736098902457,0.4129,3636.5,3636.4,0.24755]
[1736098903147,0.4129,3636.5,3636.3,3.2078]
[1736098903355,0.4129,3636.5,3636.3,3.45536]
[1736098903356,0.66045,3636.5,3636.3,3.45536]
[1736098903660,0.66045,3636.5,3636.3,0.24756]
[1736098904252,0.4129,3636.5,3635.9,4.2918]
[1736098904452,0.4129,3636.5,3636.4,0.24755]
[1736098904657,0.66045,3636.5,3636.4,0.24755]
[1736098905358,0.24755,3636.4,3636.3,0.24756]
[1736098905553,2.19809395,3636.4,3636.3,0.24756]
[1736098906259,2.19809395,3636.4,3635.9,4.2918]
[1736098906460,0.4128,3636.3,3636.2,0.24756]
[1736098910860,0.4129,3636.5,3636.4,0.24755]
[1736098914257,0.4129,3636.5,3636.0,4.2893009]
[1736098914459,0.4129,3636.5,3636.3,0.24756]
[1736098914654,0.24755,3636.4,3636.1,0.24757]
[1736098914859,0.24755,3636.4,3636.3,0.24756]
[1736098915152,0.4129,3636.5,3636.0,4.2893009]
[1736098915357,0.24756,3636.3,3636.2,4.2893009]
[1736098916864,0.24756,3636.3,3636.1,4.5368709]
[1736098917063,0.65997,3636.2,3636.1,4.5368709]
[1736098918765,0.4124,3636.2,3636.1,4.5368709]
[1736098919360,0.8207,3636.2,3636.1,4.5368709]
[1736098921065,0.8207,3636.2,3636.1,4.2893009]
[1736098921066,1.06827,3636.2,3636.1,4.2893009]
[1736098921257,1.06827,3636.2,3636.1,3.6167009]
[1736098922963,1.06827,3636.2,3635.9,3.2078]
[1736098922964,0.24758,3636.0,3635.9,3.2078]
[1736098923164,0.24759,3635.9,3635.7,3.4554]
[1736098923358,0.4202,3635.9,3635.7,3.4554]
[1736098923564,0.66779,3635.9,3635.7,3.4554]
[1736098925772,0.2476,3635.8,3635.7,3.4554]
[1736098926367,0.66779,3635.9,3635.7,3.4554]
[1736098926560,0.66779,3635.9,3635.8,0.2476]
[1736098926765,0.2476,3635.8,3635.7,3.2078]
[1736098927473,0.2476,3635.7,3635.6,6.43395135]
[1736098928271,0.2476,3635.7,3635.5,0.24761]
[1736098928467,0.858,3635.6,3635.3,6.43395135]
[1736098928666,2.44571395,3635.4,3635.3,6.43395135]
[1736098929369,0.24763,3635.3,3635.2,9.64175135]
[1736098929671,7.23670805,3635.3,3635.2,9.64175135]
[1736098930260,7.48433805,3635.3,3635.2,9.64175135]
[1736098930660,7.48215369,3635.3,3635.2,3.2078]
[1736098931571,7.48215369,3635.3,3635.1,0.24764]
[1736098931866,0.42161564,3635.3,3635.1,0.24764]
[1736098934969,0.66924564,3635.3,3635.1,0.24764]
[1736098936473,0.66924564,3635.3,3635.0,0.24765]
[1736098936673,0.66924564,3635.3,3635.1,0.24764]
[1736098937767,0.42161564,3635.3,3634.9,3.2078]
[1736098937973,0.24767,3634.7,3634.6,6.43395135]
[1736098938383,2.44576395,3634.7,3634.6,6.43395135]
[1736098939776,2.19809395,3634.7,3634.6,6.43395135]
[1736098939978,2.19809395,3634.7,3634.6,0.24768]
[1736098942767,0.4085,3634.9,3634.8,0.24766]
[1736098942967,0.24764,3635.2,3634.9,0.24765]
[1736098943184,0.4229,3635.1,3634.9,0.24765]
[1736098945377,0.4229,3635.1,3634.6,0.4471]
[1736098945581,5.40589395,3635.3,3635.2,0.24764]
[1736098946779,2.19809395,3635.3,3635.2,0.24764]
[1736098947081,2.19809395,3635.6,3635.5,0.24762]
[1736098947271,2.44570395,3635.6,3635.3,0.24763]
[1736098947479,9.36479979,3635.6,3635.3,0.24763]
[1736098948280,9.11718979,3635.6,3635.0,4.2888]
[1736098948482,9.36479979,3635.6,3635.4,0.24762]
[1736098949379,9.11718979,3635.6,3635.5,0.24762]
[1736098950086,0.4051,3635.7,3635.0,4.2888]
[1736098950283,0.4051,3635.7,3635.6,0.24761]
[1736098951472,0.8478,3635.7,3635.6,0.24761]
[1736098961191,0.8478,3635.7,3635.3,3.2078]
[1736098961493,0.24762,3635.4,3635.3,3.2078]
[1736098962788,0.24764,3635.2,3635.1,6.43395135]
[1736098962993,2.44573395,3635.2,3635.1,5.76145135]
[1736098963192,9.47367651,3635.2,3635.1,2.53045135]
[1736098963498,9.47367651,3635.2,3634.6,3.2078]
[1736098963499,9.22603651,3635.2,3634.6,3.2078]
[1736098963686,2.19809395,3634.7,3634.6,3.45548]
[1736098963885,2.44576395,3634.7,3634.6,3.45548]
[1736098964092,2.19809395,3634.7,3634.6,3.45548]
[1736098964684,2.44574395,3635.0,3634.8,0.24766]
[1736098965099,0.24766,3634.9,3634.6,3.2078]
[1736098965394,0.24766,3634.9,3634.7,0.24767]
[1736098965992,0.24766,3634.8,3634.7,0.24767]
[1736098966199,0.68686,3634.8,3634.6,3.45547]
[1736098967200,0.4392,3634.8,3634.7,0.24767]
[1736098968090,0.4392,3634.8,3634.6,3.2078]
[1736098968286,0.68686,3634.8,3634.6,3.45547]
[1736098970389,0.4392,3634.8,3634.6,3.2078]
[1736098970597,0.68687,3634.8,3634.6,3.45548]
[1736098972997,2.19809395,3635.0,3634.6,3.2078]
[1736098973203,2.19809395,3635.0,3634.9,0.24766]
[1736098977496,2.19809395,3635.0,3634.7,0.4069]
[1736098977702,0.24766,3634.8,3634.7,0.4069]
[1736098979593,2.19809395,3635.0,3634.7,0.4069]
[1736098979806,0.24766,3634.9,3634.8,0.24766]
[1736098980308,0.24766,3634.8,3634.7,0.65457]
[1736098981009,0.24766,3634.8,3634.7,0.4069]
[1736098981710,0.24766,3634.8,3634.7,0.65457]
[1736098981911,0.66906,3634.8,3634.7,0.65457]
[1736098982098,0.66906,3634.8,3634.7,0.4069]
[1736098983107,1.66873962,3634.8,3634.7,0.4069]
[1736098984213,1.42107962,3634.8,3634.5,3.2078]
[1736098984412,0.24767,3634.7,3634.5,3.45548]
[1736098984909,0.24767,3634.7,3634.5,3.2078]
[1736098985113,0.24767,3634.7,3634.6,0.24768]
[1736098985312,0.24767,3634.7,3634.5,3.2078]
[1736098985511,0.24767,3634.7,3634.5,3.45548]
[1736098987422,1.24735962,3634.6,3634.5,3.45548]
[1736098988320,0.99967962,3634.6,3634.5,3.45548]
[1736099002034,0.99967962,3634.6,3634.5,7.46222446]
[1736099003138,2.16097451,3635.0,3634.9,0.24766]
[1736099003339,3.16065413,3635.0,3634.9,3.45546]
[1736099004934,0.99967962,3635.0,3634.9,7.46220446]
[1736099006234,1.24732962,3635.0,3634.9,4.00674446]
[1736099007437,0.24766,3634.8,3634.6,0.24767]
[1736099007638,1.24733962,3634.8,3634.6,0.24767]
[1736099008430,0.24767,3634.7,3634.5,13.1080818]
[1736099008632,0.99967962,3634.6,3634.5,13.1080818]
[1736099009628,0.99967962,3634.6,3634.5,12.8604018]
[1736099009935,1.24735962,3634.6,3634.5,12.8604018]
[1736099010125,3.41271086,3634.6,3634.5,8.29566884]
[1736099011125,3.16503086,3634.6,3634.5,8.54334884]
[1736099012633,3.16503086,3634.6,3634.5,5.33554884]
[1736099014332,3.41271086,3634.6,3634.5,5.08786884]
[1736099014534,3.41271086,3634.6,3634.5,4.01386884]
[1736099018740,0.24768,3634.5,3634.4,3.2078]
[1736099018939,0.69308,3634.5,3634.4,3.2078]
[1736099019139,0.69308,3634.5,3634.4,3.45549]
[1736099019540,0.4454,3634.5,3634.4,3.45549]
[1736099020138,0.69308,3634.5,3634.4,3.45549]
[1736099020328,4.35349245,3634.5,3634.4,3.45549]
[1736099020534,4.10581245,3634.5,3634.4,3.45549]
[1736099021537,2.61016393,3634.5,3634.4,7.46784374]
[1736099024342,2.61016393,3634.5,3634.4,3.45549]
[1736099025847,2.85784393,3634.5,3634.4,3.45549]
[1736099026741,2.61016393,3634.5,3634.4,3.45549]
[1736099026936,2.16476393,3634.5,3634.4,3.45549]
[1736099027148,3.16444355,3634.5,3634.4,3.45549]
[1736099028650,0.99967962,3634.5,3634.4,7.46626787]
[1736099031040,2.16476393,3634.8,3634.4,7.21857787]
[1736099031244,2.16476393,3634.8,3634.7,0.24767]
[1736099033946,2.16476393,3634.8,3634.6,6.90802458]
[1736099033947,0.24767,3634.7,3634.6,6.47122458]
[1736099035747,2.41243393,3634.8,3634.7,0.24767]
[1736099035954,1.24734962,3634.7,3634.6,0.24767]
[1736099036452,0.99967962,3634.7,3634.6,0.24767]
[1736099037554,3.16353035,3634.7,3634.6,0.24767]
[1736099038153,2.16385073,3634.7,3634.6,0.24767]
[1736099038449,2.16385073,3634.7,3634.6,1.32167]
[1736099038849,2.16385073,3634.9,3634.8,0.24766]
[1736099039048,2.16385073,3634.9,3634.8,3.45546]
[1736099040456,0.99967962,3635.0,3634.9,0.24766]
[1736099041651,1.42107962,3635.0,3634.9,0.24766]
[1736099041847,1.42107962,3635.0,3634.9,10.72514728]
[1736099043153,1.42107962,3635.0,3634.9,4.2574387]
[1736099044855,1.42107962,3635.0,3634.9,4.0097787]
[1736099044856,1.66872962,3635.0,3634.9,4.0097787]
[1736099046353,1.66872962,3635.0,3634.8,4.31145781]
[1736099046354,0.24766,3634.9,3634.8,4.31145781]
[1736099046558,0.68966,3634.9,3634.8,4.31145781]
[1736099047652,0.24767,3634.7,3634.5,0.24768]
[1736099047853,0.99967962,3634.6,3634.5,0.24768]
[1736099048462,0.85490106,3634.9,3634.4,7.51925781]
[1736099048755,0.99967962,3634.8,3634.7,0.24767]
[1736099048960,2.16305032,3634.8,3634.6,0.99967962]
[1736099049161,2.16305032,3634.8,3634.7,0.4047]
[1736099049366,2.16305032,3634.8,3634.7,0.65237]
[1736099050369,0.99967962,3635.0,3634.9,0.24766]
[1736099050559,0.99967962,3635.0,3634.9,3.45546]
[1736099051557,0.99967962,3635.0,3634.9,7.46268797]
[1736099053762,0.414,3635.1,3634.9,7.21502797]
[1736099053966,0.414,3635.1,3634.9,7.76571526]
[1736099053967,0.99967962,3635.0,3634.9,7.76571526]
[1736099056374,3.16272994,3635.2,3634.9,7.51806526]
[1736099056569,3.16272994,3635.2,3635.1,0.24764]
[1736099056870,3.41036994,3635.2,3635.0,0.24764]
[1736099057066,1.24732962,3635.1,3634.9,7.76572526]
[1736099057265,1.24732962,3635.1,3634.9,7.21396772]
[1736099057466,0.99967962,3635.1,3634.9,7.21396772]
[1736099058365,0.99967962,3635.1,3635.0,0.24765]
[1736099061467,0.99967962,3635.1,3635.0,4.55648361]
[1736099067870,0.99967962,3635.1,3635.0,4.25219753]
[1736099069481,2.16305032,3635.5,3635.4,0.24762]
[1736099069668,2.16305032,3635.5,3635.0,4.00454753]
[1736099069669,0.24764,3635.2,3635.0,4.25219753]
[1736099069871,1.83587962,3635.1,3635.0,4.25219753]
[1736099070078,2.27817962,3635.1,3635.0,4.25219753]
[1736099070763,2.27817962,3635.1,3635.0,0.24765]
[1736099070969,0.24765,3635.0,3634.9,3.2078]
[1736099071280,0.24766,3634.9,3634.8,4.30899821]
[1736099071568,1.24733962,3634.9,3634.8,4.30899821]
[1736099072368,1.24733962,3634.9,3634.4,4.30899821]
[1736099072369,0.24768,3634.5,3634.4,4.30899821]
[1736099072575,1.24735962,3634.5,3634.4,4.30899821]
[1736099073976,1.24735962,3634.5,3634.1,0.24771]
[1736099073977,0.2477,3634.3,3634.1,0.24771]
[1736099074276,1.24737962,3634.3,3634.1,0.24771]
[1736099075273,0.99967962,3634.3,3634.1,0.24771]
[1736099075467,0.99967962,3634.3,3634.2,0.2477]
[1736099076779,1.2852,3634.4,3634.3,0.2477]
[1736099076976,2.28487962,3634.4,3634.3,0.2477]
[1736099078376,2.28487962,3634.4,3634.2,0.2477]
[1736099078776,2.28487962,3634.4,3634.1,4.30899821]
[1736099078985,1.85247962,3634.4,3634.3,0.2477]
[1736099083286,2.10016962,3634.4,3634.2,0.4239]
[1736099083882,0.2477,3634.3,3634.1,4.30899821]
[1736099084088,0.99967962,3634.2,3634.1,4.30899821]
[1736099084778,0.99967962,3634.2,3634.1,4.55670821]
[1736099085190,0.99967962,3634.2,3634.1,0.24771]
[1736099085584,0.99967962,3634.2,3634.0,7.76450821]